Cogmind - Beta 17 @@@ ROGUE MODE // 2026.08.02 @ 02:49:29 Player: Mat Result: Destroyed by G-47 Trooper with Particle Gun Performance ------------- Evolutions (3) 1500 Regions Visited (6) 1200 Robots Destroyed (81) 405 Value Destroyed (2098) 2098 Prototype IDs (11) 220 Alien Tech Used (0) 0 Bonus (700) 700 TOTAL SCORE: 6123 Bonus ------- Entered Garrisons 200 Used RIF Installer 500 Cogmind --------- Core Integrity 0/700 Matter 295/300 Energy 100/100 System Corruption 1% Temperature Cool (9) Movement Flying (32) Location -7/Garrison Parts ------- > --- POWER (2) -------- (None) > --- PROPULSION (3) --- Surge Thruster > --- UTILITY (6) ------ Core Analyzer Armor Integrity Analyzer > --- WEAPON (2) ------- Katana > --- INVENTORY (5) ---- Light Nuclear Core Improved Deuterium Engine Gravity Neutralizer Gravity Neutralizer Relay Coupler [NC] (30) Peak State ------------ > --- POWER ------------ Light Nuclear Core Enhanced Nuclear Core > --- PROPULSION ------- Flight Unit Improved Flight Unit Xenon Bombardment Thruster > --- UTILITY ---------- Weight Redist. System Melee Analysis Suite Core Analyzer Armor Integrity Analyzer Improved Medium Armor Plating Component Analysis Suite > --- WEAPON ----------- Katana > --- INVENTORY -------- Light Nuclear Core Improved Sensor Array Improved Shield Generator Hacking Suite Mining Claw [Rating: 41] Favorites ----------- Power Light Nuclear Core Engine Ion Engine Power Core Light Nuclear Core Propulsion Flight Unit Treads Light Treads Leg Aluminum Leg Wheel Wheel Flight Unit Flight Unit Utility Weight Redist. System Device Weight Redist. System Processor Armor Integrity Analyzer Hackware Hacking Suite Protection Improved Light Armor Plating Weapon Katana Energy Gun Small Laser Ballistic Gun Assault Rifle Ballistic Cannon Flak Cannon Launcher Rocket Launcher Special Weapon Mining Laser Impact Weapon Hammer Slashing Weapon Katana Build | -11 -10 -9 -9 -8 -7 -7 ------- Run | Yrd Mat Mat Min Mat Fac Gar Slots Evolved 6 | . . 2 . 2 2 . Power 1 | . . . . 1 . . Propulsion 1 | . . . . 1 . . Utility 4 | . . 2 . . 2 . Weapon . | . . . . . . . Parts Attached 76 | 7 11 14 3 11 12 18 Power 15 | 1 1 2 1 1 5 4 Engine 7 | 1 1 2 1 1 1 . Core 8 | . . . . . 4 4 Reactor . | . . . . . . . Propulsion 22 | 2 4 4 . 1 1 10 Treads 1 | . . . . . . 1 Leg 3 | . . . . . . 3 Wheel 7 | 2 4 1 . . . . Hover . | . . . . . . . Flight 11 | . . 3 . 1 1 6 Utility 21 | 2 1 4 . 7 6 1 Device 12 | 2 1 3 . 4 2 . Storage . | . . . . . . . Processor 5 | . . 1 . 2 2 . Hackware 1 | . . . . . . 1 Protection 3 | . . . . 1 2 . Artifact . | . . . . . . . Weapon 18 | 2 5 4 2 2 . 3 Energy Gun 6 | 2 3 . . . . 1 Energy Cannon . | . . . . . . . Ballistic Gun 5 | . 1 2 1 . . 1 Ballistic Cannon 1 | . . 1 . . . . Launcher 1 | . . . 1 . . . Special Weapon 1 | . . 1 . . . . Impact Weapon 1 | . 1 . . . . . Slashing Weapon 3 | . . . . 2 . 1 Piercing Weapon . | . . . . . . . Special Melee Weapon . | . . . . . . . Unidentified Prototypes 1 | . . . . 1 . . Parts Lost 34 | . 4 9 . 2 2 17 Power 7 | . 1 1 . 1 . 4 Propulsion 15 | . 2 4 . . 2 7 Utility 9 | . 1 2 . 1 . 5 Weapon 3 | . . 2 . . . 1 Highest Loss Streak 6 | . 2 3 . 2 2 6 To Critical Strikes 1 | . . . . . . 1 Average Backups 3 | 1 3 4 4 4 4 3 Power . | . . . . . . 1 Propulsion . | . . 1 . . . . Utility 1 | . . . 1 1 2 2 Weapon 1 | . 1 1 2 2 1 . Tool/Special . | . . . . . . . Unused Backups 10 | . . . 2 3 1 4 Power 3 | . . . 1 1 . 1 Propulsion 1 | . . . 1 . . . Utility 5 | . . . . 1 1 3 Weapon 1 | . . . . 1 . . Tool/Special . | . . . . . . . Average Slot Usage (%) 73 | . 90 65 52 63 82 64 Engine 6 | . 13 8 11 9 1 . Core 4 | . . . . . 10 10 Leg 2 | . . . . . . 9 Wheel 7 | . 25 8 . . . . Flight 8 | . . 12 11 15 18 4 Device 15 | . 21 16 19 16 13 7 Processor 8 | . . . . 7 22 17 Protection 2 | . . . . 6 5 2 Energy Gun 4 | . 19 . . . . . Ballistic Gun 2 | . 2 8 8 . . 1 Impact Weapon 3 | . 5 11 2 . . . Slashing Weapon 4 | . . . . 8 7 7 Peak Build Rating 41 | 9 10 15 11 23 41 33 Average Rating 17 | 4 7 7 8 18 33 25 On Entrance 10 | . 9 6 5 9 18 25 Avg Prop Armor Cover (%) . | . . . . . . . Naked Turns . | . . . . . . . Heaviest Build 21 | 10 11 16 10 13 21 20 Greatest Support 30 | 20 26 26 10 15 21 30 Greatest Overweight (x) 3 | . 3 1 . . . 2 Average Overweight (x) . | . . . . . . . Largest Inventory Capacity 5 | 5 5 5 5 5 5 5 Average Capacity 5 | 5 5 5 5 5 5 5 Most Carried 5 | 2 5 5 5 5 5 5 Average Carried 3 | 1 3 4 4 4 4 3 Final Capacity 5 | 5 5 5 5 5 5 5 Final Carried 5 | 2 4 4 5 4 4 5 Class Distribution -------------------- 75% | Mutant 20% | Scavenger-Mutant 3% | Scavenger-Sprinter Dominant Class ---------------- Mutant | -10/Materials Mutant | -9/Materials Mutant | -9/Mines Mutant | -8/Materials Mutant | -7/Factory Scavenger-Mutant | -7/Garrison Resources | -11 -10 -9 -9 -8 -7 -7 ----------- Run | Yrd Mat Mat Min Mat Fac Gar Matter Collected 1328 | 270 154 266 18 180 83 357 Remotely . | . . . . . . . Salvage Created 3192 | 98 945 680 . 436 105 928 Parts 160 | 7 36 39 . 18 7 53 Haulers Intercepted 7 | . 1 4 . 2 . . Recyclers Shooed 1 | . 1 . . . . . Parts Field Recycled . | . . . . . . . Retrieved Matter . | . . . . . . . Parts Self-Destructed . | . . . . . . . Prevented . | . . . . . . . Parts Restored . | . . . . . . . Kills | -11 -10 -9 -9 -8 -7 -7 ------- Run | Yrd Mat Mat Min Mat Fac Gar Combat Hostiles Destroyed 47 | . 11 13 . 5 3 15 Melee 21 | . 1 2 . 5 3 10 Guns 20 | . 9 6 . . . 5 Classes Destroyed 14 | 2 7 2 . 1 . 2 Worker 9 | . 7 2 . . . . Builder 6 | . 5 1 . . . . Tunneler 3 | 1 2 . . . . . Hauler 7 | . 1 4 . 2 . . Recycler 3 | 1 2 . . . . . Mechanic 1 | . . . . 1 . . Operator 3 | . 1 2 . . . . Watcher 2 | . 1 . . 1 . . Swarmer 12 | . 3 5 . . 1 3 Cutter 2 | . . . . . . 2 Grunt 25 | . 8 4 . 3 2 8 Duelist 1 | . . 1 . . . . Sentry 6 | . . 3 . 2 . 1 Hunter 1 | . . . . . . 1 Best Kill Streak 7 | 2 4 5 . 3 3 7 Combat Bots Only 7 | . 4 3 . 3 3 7 Max Kills in Single Turn 2 | 1 2 1 . 1 1 1 Gunslinging 1 | . 1 . . . . . Exploded . | . . . . . . . Melee 1 | . 1 1 . 1 1 1 Uniques/NPCs Destroyed . | . . . . . . . Combat | -11 -10 -9 -9 -8 -7 -7 -------- Run | Yrd Mat Mat Min Mat Fac Gar Hostile Shots Fired 399 | . 69 104 . 27 34 165 Missed 120 | . 22 28 . 8 15 47 Hits 279 | . 47 76 . 19 19 118 Melee 6 | . . . . . . 6 Projectile 273 | . 47 76 . 19 19 112 AOE 4 | . . . . . 2 2 Critical Strikes 8 | . . . . . . 8 Damage Taken 4061 | . 544 907 . 316 502 1792 Core 1359 | . 190 355 . 109 128 577 Absorbed by Shields 63 | . . 16 . . . 47 Core Remaining (%) 53 | 100 24 . 11 80 . . Volleys Fired 114 | 3 57 37 . . . 17 Largest 2 | 2 2 1 . . . 1 Hottest 105 | 90 105 100 . . . 65 Shots Fired 172 | 6 112 37 . . . 17 Gun 171 | 6 112 36 . . . 17 Cannon . | . . . . . . . Launcher . | . . . . . . . Special 1 | . . 1 . . . . Kinetic 51 | . 1 36 . . . 14 Thermal 121 | 6 111 1 . . . 3 Explosive . | . . . . . . . Electromagnetic . | . . . . . . . Robot Hit Streak 9 | 2 9 7 . . . 5 Robot Miss Streak 7 | 1 6 7 . . . 6 Penetration Max . | . . . . . . . Secondary Targets 2 | . 2 . . . . . Max Gunslinging Chain 1 | . 1 . . . . . Shots Hit Robots 242 | 4 82 66 . 24 12 54 Core Hits 103 | 3 29 19 . 9 3 40 Critical Kills 3 | . . 3 . . . . Critical Parts Destroyed 10 | . 2 8 . . . . Critical Strikes 25 | . 5 13 . 2 2 3 Burn 3 | . 3 . . . . . Smash 15 | . 2 13 . . . . Sever 7 | . . . . 2 2 3 Melee Attacks 206 | . 25 51 . 40 20 70 Impact 76 | . 25 51 . . . . Slashing 130 | . . . . 40 20 70 Piercing . | . . . . . . . Sneak Attacks 27 | . 14 9 . 3 1 . Combat Hostiles . | . . . . . . . Follow-up Attacks . | . . . . . . . Damage Inflicted 6731 | 45 1732 1542 . 966 449 1997 Guns 1362 | 45 780 305 . . . 232 Cannons . | . . . . . . . Explosions . | . . . . . . . Melee 5369 | . 952 1237 . 966 449 1765 Ramming . | . . . . . . . Kinetic 524 | . . 305 . . . 219 Thermal 838 | 45 780 . . . . 13 Explosive . | . . . . . . . Electromagnetic . | . . . . . . . Impact 2189 | . 952 1237 . . . . Slashing 3180 | . . . . 966 449 1765 Piercing . | . . . . . . . Highest Corruption 1 | . . . . . . 1 Average Corruption 1 | . . . . . . 1 Corruption Purged . | . . . . . . . Corruption Blocked . | . . . . . . . Effects 1 | . . . . . . 1 Matter Fused 1 | . . . . . . 1 Overload Shots . | . . . . . . . Overflow Damage 879 | . 343 313 . 73 22 128 Projectiles . | . . . . . . . Explosions . | . . . . . . . Melee 879 | . 343 313 . 73 22 128 Knockbacks 8 | . 5 3 . . . . Impact 8 | . 5 3 . . . . Kinetic . | . . . . . . . Secondary . | . . . . . . . Self-Inflicted Damage . | . . . . . . . Shots . | . . . . . . . Rammed . | . . . . . . . Targets Rammed . | . . . . . . . Kicked . | . . . . . . . Crushed . | . . . . . . . Highest Temperature 437 | 60 437 . . . 21 42 Average Temperature 172 | 28 186 . . . 8 16 Received Heat Transfer 1384 | . 261 258 . 162 102 601 Effects 6 | . 6 . . . . . Shutdowns 1 | . 1 . . . . . Energy Bleed 1 | . 1 . . . . . Matter Decay 1 | . 1 . . . . . Damage (minor) 3 | . 3 . . . . . Siege Activations . | . . . . . . . Martial Activations . | . . . . . . . Shielding Activations . | . . . . . . . Robots Disrupted . | . . . . . . . Combat Hostiles . | . . . . . . . Robots Corrupted 17 | . 10 7 . . . . Combat Hostiles 6 | . 1 5 . . . . Parts Fried 20 | . 13 7 . . . . Impact Corruptions 32 | . 17 15 . . . . Robots Melted . | . . . . . . . Combat Hostiles . | . . . . . . . Parts Melted 3 | 1 2 . . . . . Heat Transferred 2342 | 124 2181 . . . . 37 Parts Sabotaged . | . . . . . . . Parts Stolen . | . . . . . . . Parts Stripped . | . . . . . . . Power Chain Reactions . | . . . . . . . Alert | -11 -10 -9 -9 -8 -7 -7 ------- Run | Yrd Mat Mat Min Mat Fac Gar Maximum Alert Level 1 | . . . . . . 1 Low Security (%) 83 | 100 100 100 100 100 100 33 Level 1 16 | . . . . . . 66 Level 2 . | . . . . . . . Level 3 . | . . . . . . . Level 4 . | . . . . . . . Level 5 . | . . . . . . . High Security . | . . . . . . . Max Security . | . . . . . . . Peak Influence 354 | 5 102 173 63 110 60 354 Initial 63 | . 3 17 63 12 8 7 Average 95 | 1 43 87 50 62 19 228 Influence Increases 1767 | 10 391 444 . 256 159 507 Destroy 0b10 Robot/C 940 | . 220 260 . 100 60 300 Destroy 0b10 Robot/NC 190 | 10 95 45 . 20 . 20 Destroy Leader 178 | . 54 78 . 36 . 10 Successful Hack 65 | . 21 . . 23 9 12 Disable Machine 60 | . . . . . . 60 Anti-Garrison Action 50 | . . . . . . 50 Destroy Structure 44 | . 1 1 . 2 . 40 Partial Spotted 45 | . . 45 . . . . Lose Combat Pursuer 195 | . . 15 . 75 90 15 Influence Decreases 1423 | 5 354 324 129 270 168 173 Entered New Map 161 | . 2 25 99 21 11 3 Time Decay 950 | 5 315 234 30 229 137 . Lost Part 312 | . 37 65 . 20 20 170 Squads Dispatched 4 | . 1 2 . . 1 . Investigation . | . . . . . . . Extermination 1 | . . . . . 1 . Reinforcement 3 | . 1 2 . . . . Assault . | . . . . . . . Garrison . | . . . . . . . Intercept . | . . . . . . . Searches Triggered . | . . . . . . . Construction Impeded 1 | . . 1 . . . . Haulers Reinforced . | . . . . . . . Active Scanning Responses . | . . . . . . . Cargo Convoy Interrupts . | . . . . . . . Stealth | -11 -10 -9 -9 -8 -7 -7 --------- Run | Yrd Mat Mat Min Mat Fac Gar Distress Signals 7 | . 2 2 . 3 . . Communications Jammed . | . . . . . . . Distress Signals . | . . . . . . . Times Spotted 99 | . 18 28 . 18 13 22 Peak Tracking Total 7 | . 5 5 . 7 6 5 Tactical Retreats 6 | . . 1 . 2 2 1 Traps | -11 -10 -9 -9 -8 -7 -7 ------- Run | Yrd Mat Mat Min Mat Fac Gar Traps Triggered 6 | . . . . . 1 5 Indirectly . | . . . . . . . Trap Hack Attempts . | . . . . . . . Triggered . | . . . . . . . Disarmed 4 | . 4 . . . . . Reprogrammed . | . . . . . . . Reused . | . . . . . . . Traps Extracted . | . . . . . . . Installed . | . . . . . . . Triggered . | . . . . . . . Machines | -11 -10 -9 -9 -8 -7 -7 ---------- Run | Yrd Mat Mat Min Mat Fac Gar Machines Disabled 5 | . . . . . . 5 Max in Single Turn 1 | . . . . . . 1 Garrison Relay 1 | . . . . . . 1 Machines Repaired . | . . . . . . . Machines Dismantled . | . . . . . . . Machines Sabotaged . | . . . . . . . Overloaded Fab Kills . | . . . . . . . Hacking | -11 -10 -9 -9 -8 -7 -7 --------- Run | Yrd Mat Mat Min Mat Fac Gar Machines Accessed 18 | . 5 2 . 4 6 1 Terminals 16 | . 5 2 . 4 4 1 Fabricators 1 | . . . . . 1 . Repair Stations . | . . . . . . . Recycling Units . | . . . . . . . Scanalyzers . | . . . . . . . Garrison Access 1 | . . . . . 1 . Total Hacks 39 | . 14 3 . 12 8 2 Successful 19 | . 5 2 . 7 4 1 Failed 20 | . 9 1 . 5 4 1 Catastrophic 3 | . 1 1 . . . 1 Database Lockouts . | . . . . . . . Manual 14 | . 4 . . 7 3 . Terminals 37 | . 14 3 . 12 6 2 Fabricators 1 | . . . . . 1 . Repair Stations . | . . . . . . . Recycling Units . | . . . . . . . Scanalyzers . | . . . . . . . Garrison Access 1 | . . . . . 1 . Terminal Hacks 17 | . 5 2 . 7 2 1 Record 2 | . 1 1 . . . . Prototype ID Bank 4 | . 1 . . 3 . . Open DSF 1 | . . . . . 1 . Emergency Access Points 2 | . 1 . . . . 1 Terminal Index 1 | . . . . 1 . . Locate Traps 2 | . . 1 . 1 . . Disarm Traps 1 | . 1 . . . . . Maintenance Status 1 | . 1 . . . . . Hauler Manifests 1 | . . . . 1 . . Zone Layout 2 | . . . . 1 1 . Fabricator Hacks 1 | . . . . . 1 . Network Status 1 | . . . . . 1 . Repair Station Hacks . | . . . . . . . Recycling Unit Hacks . | . . . . . . . Scanalyzer . | . . . . . . . Garrison Access Hacks 1 | . . . . . 1 . Unlock Access 1 | . . . . . 1 . Unauthorized Hacks . | . . . . . . . Terminals . | . . . . . . . Fabricators . | . . . . . . . Repair Stations . | . . . . . . . Recycling Units . | . . . . . . . Scanalyzers . | . . . . . . . Garrison Access . | . . . . . . . Data Cores Recovered . | . . . . . . . Used . | . . . . . . . Hacking Detections 14 | . 3 2 . 3 5 1 Full Trace Events . | . . . . . . . Feedback Events . | . . . . . . . Feedback Blocked . | . . . . . . . Robot Schematics Acquired . | . . . . . . . Robots Built . | . . . . . . . Authchips . | . . . . . . . Time . | . . . . . . . Total Robot Build Rating . | . . . . . . . Part Schematics Acquired . | . . . . . . . Parts Built . | . . . . . . . Authchips . | . . . . . . . Time . | . . . . . . . Total Part Build Rating . | . . . . . . . Part Studies Acquired . | . . . . . . . Parts Repaired . | . . . . . . . Time . | . . . . . . . Parts Recycled . | . . . . . . . Recycled Matter . | . . . . . . . Retrieved Matter . | . . . . . . . Retrieved Components . | . . . . . . . Parts Scanalyzed . | . . . . . . . Part Schematics Acquired . | . . . . . . . Parts Damaged . | . . . . . . . Bothacking | -11 -10 -9 -9 -8 -7 -7 ------------ Run | Yrd Mat Mat Min Mat Fac Gar Used RIF Installer 1 | . . . . . . 1 Robots Hacked . | . . . . . . . Non-combat . | . . . . . . . Combat . | . . . . . . . Robot Hacks Applied . | . . . . . . . Relay Couplers Released 5 | . . . . . . 5 Machine Destruction 5 | . . . . . . 5 Fabnet Peak Effective % . | . . . . . . . Robots Rewired . | . . . . . . . Allies Hacked . | . . . . . . . Hacks Repelled . | . . . . . . . Allies | -11 -10 -9 -9 -8 -7 -7 -------- Run | Yrd Mat Mat Min Mat Fac Gar Total Allies . | . . . . . . . Largest Group . | . . . . . . . Highest-Rated Group . | . . . . . . . Highest-Rated Ally . | . . . . . . . Total Orders . | . . . . . . . Ally Attacks . | . . . . . . . Total Damage . | . . . . . . . Kills . | . . . . . . . Allies Corrupted . | . . . . . . . Allies Melted . | . . . . . . . Intel | -11 -10 -9 -9 -8 -7 -7 ------- Run | Yrd Mat Mat Min Mat Fac Gar Active Infowar (turns) 1349 | 9 775 537 . 28 . . Optics 14 | . . 14 . . . . Sensors 3 | . . . . 3 . . Terrain 434 | 6 428 . . . . . Seismic 1321 | 9 775 537 . . . . T.N.C. 25 | . . . . 25 . . Robot Analysis Total . | . . . . . . . Derelict Logs Recovered . | . . . . . . . Drone Launches . | . . . . . . . Drone Recoveries . | . . . . . . . Exploration | -11 -10 -9 -9 -8 -7 -7 ------------- Run | Yrd Mat Mat Min Mat Fac Gar Turns Passed 3213 | 58 775 571 67 498 454 790 Spaces Moved 3080 | 41 470 545 126 575 768 555 Core 30 | 4 8 . . . . 18 Treads 79 | . . . . . . 79 Legs 223 | . . . . . . 223 Wheels 621 | 37 462 122 . . . . Hover . | . . . . . . . Flight 2127 | . . 423 126 575 768 235 Fastest Speed 29 | 50 80 37 40 37 34 29 Average Speed 56 | 77 86 49 40 38 35 89 Slowest Speed 200 | 80 200 125 40 40 40 190 Overloaded Moves 9 | . . . . . . 9 Propulsion Burnouts . | . . . . . . . Robots Hopped 2 | . . . 1 . 1 . Potential Cave-ins . | . . . . . . . Cave-ins Triggered . | . . . . . . . Exploration Rate (%) 35 | 3 61 46 31 39 18 51 Regions Visited 6 Branch Regions 1 Pre-discovered Areas . | . . . . . . . Known Exits Taken 1 | . . . . . 1 . Unknown Exits Taken 5 | 1 1 1 1 1 . . Scrap Searched 1 | . . . 1 . . . Spaces Dug 3 | . . 1 . 2 . . Terrain Destroyed 3 | . . 1 . 2 . . Melee 2 | . . . . 2 . . Projectile 1 | . . 1 . . . . AOE . | . . . . . . . Terrain Rammed . | . . . . . . . Walls Destroyed . | . . . . . . . Machines Disabled . | . . . . . . . Actions | -11 -10 -9 -9 -8 -7 -7 --------- Run | Yrd Mat Mat Min Mat Fac Gar Total 4049 | 57 680 716 141 793 924 738 Wait 421 | 5 110 53 5 139 85 24 Move 3071 | 40 469 544 123 574 766 555 Hop 2 | . . . 1 . 1 . Pick Up 31 | 2 2 4 2 7 6 8 Fast Attach 54 | 7 3 10 2 8 12 12 Attach 22 | . 1 3 1 5 4 8 Detach 17 | . . 2 2 4 8 1 Swap 22 | . 7 3 2 4 5 1 Drop 51 | . 6 9 3 12 17 4 Fire 114 | 3 57 37 . . . 17 Melee 206 | . 25 51 . 40 20 70 Ram . | . . . . . . . Kick . | . . . . . . . Crush . | . . . . . . . Escape Stasis 38 | . . . . . . 38 Rewire . | . . . . . . . Trap . | . . . . . . . Miscellaneous . | . . . . . . . Route ------- -11/Scrapyard -10/Materials (discovered 5 exits: *Mat x2 / [*Min x2] / [*Sub]) -9/Materials (discovered 2 exits: [*Min x2]) -9/Mines (discovered 3 exits: *Mat / [*Exi] / [*Zio]) -8/Materials -7/Factory (discovered 4 exits: [*Fac] / [*Sto] / [*Low] / Gar) -7/Garrison (discovered 1 exit: [*Fac]) History --------- Turn | Location | Event 12 | -11/Scrapyard | Discovered new exit (range 16) 59 | -11/Scrapyard | Entered Materials 82 | -10/Materials | Discovered new exit (range 16) 333 | -10/Materials | Discovered new exit (range 11) 381 | -10/Materials | Discovered new exit (range 4) 652 | -10/Materials | Discovered new exit (range 15) 759 | -10/Materials | Core integrity fell below 50% 826 | -10/Materials | Build established: Mutant 829 | -10/Materials | Discovered new exit (range 5) 834 | -10/Materials | Entered another Materials area 834 | -9/Materials | Evolved 2 slots: Utility x2 1091 | -9/Materials | Discovered new exit (range 8) 1101 | -9/Materials | Core integrity fell below 50% 1176 | -9/Materials | Discovered new exit (range 16) 1375 | -9/Materials | Core integrity fell below 20% 1402 | -9/Materials | Lost 3 parts (1n2u) 1405 | -9/Materials | Entered Mines 1406 | -9/Mines | A Derelict revealed a hidden shortcut to a safe place 1408 | -9/Mines | Found DCF Scrap (13 items) 1427 | -9/Mines | Deemed a non-threat by the Exiles lab entrance 1428 | -9/Mines | Discovered new exit (range 5) 1449 | -9/Mines | Received a Rocket Launcher from a helpful Derelict 1470 | -9/Mines | Discovered new exit (range 6) 1472 | -9/Mines | Entered Materials 1472 | -8/Materials | Evolved 2 slots: Power x1, Propulsion x1 1587 | -8/Materials | Discovered new exit (range 10) 1970 | -8/Materials | Entered Factory 1970 | -7/Factory | Evolved 2 slots: Utility x2 2112 | -7/Factory | Discovered new exit (range 3) 2287 | -7/Factory | Discovered new exit (range 8) 2306 | -7/Factory | Discovered new exit (range 12) 2424 | -7/Factory | Identified exit to Garrison 2424 | -7/Factory | Entered Garrison 2468 | -7/Garrison | Triggered checkpoint 2532 | -7/Garrison | Garrison Relay disabled 2570 | -7/Garrison | Installed Relay Interface Framework 2671 | -7/Garrison | Core integrity fell below 50% 2691 | -7/Garrison | Lost 4 parts (1p1n1u1w) 2704 | -7/Garrison | Triggered checkpoint 2709 | -7/Garrison | Destroyed 7 combat bots 2762 | -7/Garrison | Discovered new exit (range 15) 2820 | -7/Garrison | Triggered checkpoint 2879 | -7/Garrison | Lost 6 parts (1p3n2u) 3129 | -7/Garrison | Build established: Scavenger-Mutant 3184 | -7/Garrison | Core integrity fell below 20% 3214 | -7/Garrison | Destroyed by G-47 Trooper with Particle Gun Last Messages --------------- 03126_ Sneak attack on M-14 Sweeper. 03126_ Destroyed Trap Scanner. 03126_ M-14 Sweeper destroyed. 03128_ Acquired 10 matter. 03159_ System corrupted: Matter fused (-6). 03183_ Knocked back. 03184_ C-17 Slicer destroyed. 03186_ Aluminum Leg destroyed. 03198_ Aluminum Leg severed. 03201_ Critical hit (Burn: +37). 03202_ Aluminum Leg destroyed. 03204_ Lgt. Nuclear Core severed. 03205_ C-17 Slicer destroyed. 03208_ Critical hit (Burn: +37). 03209_ Acquired Surge Thruster. The Surge Thruster is "overloadable", activating it again increases its output for additional resource costs, and may damage the unit. See Burnout stat context help for more info. 03210_ Lgt. Nuclear Core destroyed. [Achievement: First Step to Greatness] Map ----- +----------------------------------------------------+ | ?????????????????????????????????# #????????????? | | ?????????????????????????????????# #????????????? | | ?????????????????????????????????# #????????????? | | ?????????????????????????????????# #??#######???? | | ?????????????????????????????????# #??#"" ""#???? | | ?????????????????????????????????# #####! !###### | | ?????????????????????????????????# " + !! | | ?????????????????????????????????# ## ###### #### | | ?????????????????????????????????# ## #????# #??? | | ??????????????????????############ ## #????# #??? | | ????+?????????????????# ## #????# ###? | | ????+?????????????????# ## ###### #? | | ??????????????????????# ###+##### ## " #? | | ??????????????????????# #?# #???# ######### ! #? | | ??????????????????????# ### ##### ######### ###? | | ??????????????????????# " " #??? | | ????????????????####### ##### ### ###########??? | | ????????????????# ## #???# #?# #????????????? | | ?????##+#####++## =##[ ##??# #?# #????????????? | | ???? ^ *%!* ####+### #????????????? | | ???? / ^ #????????????? | | ???? [ [ ^^ #????????????? | | ??????#+#### ## ## [[###########????????????? | | ???????????# ## ## ###????????????????????? | | ?????????+?" = = #????????????????????? | | ???????????" = @% #????????????????????? | | ???????????" g !% % #????????????????????? | | ???????????" g #????????????????????? | | ???????????# ## =## ###??????????????######? | | ??????????## ## ## ############????## ## | | ????????? #????# # | | ????????? ^^ ###### =[! # | | ????????#### " !*!!=!# | | ???????????# ##""""##+;#T##"#### ### ###%=% ## | | ???????????# ???????# #### #??# #?# #?######? | | ???????????# ???+????# #??# #??# #?# #???????? | | ???????????# ?????????# #??# #??# #?# #???????? | | ?????+?????+???+??????# #??# #??# ###"##??????? | | ??????????????????????# #??# #??# ## #??????? | | ??????????????????????# #### #### ==## ##### | | ??????????????????????# + [% ^ | | ??????????????????????# + =!% ^ | | ??????????????????????#++######### [############# | | ????????????????????### #######?# #???????????? | | ?????????+??????????#"" ""#?# #???????????? | | ????????????????????#"! !"#?# #???????????? | | ????????????????????#"! !"#?# #???????????? | | ??+????+????????????#"! !"#?# #???????????? | | ????????????????????#"! !"#?# #???????????? | | ????????????????????#"! !"#?# #???????????? | +----------------------------------------------------+ Best States ------------- Heat Dissipation 34 Energy Generation 23 Energy Capacity 430 Matter Stores 300 Matter Capacity 300 Sight Range 18 Terrain Scan Range 16 Terrain Scan Density 10 Additional Mass Support 6 Armor Coverage 225 Melee Speed Boost 20 Evasion (%) 70 Melee Accuracy 5 Core Analysis 6 Armor Integrity Analysis 30 Recoil Reduction 1 Offensive Hacking 10 Item Schematics ----------------- None Robot Schematics ------------------ None Fabricated ------------ Nothing Repaired ---------- Nothing Studied --------- None Alien Tech Used ----------------- None Achievements -------------- First Step to Greatness Join The Dark Side Challenges ------------ None Game ------ Seed TitaniumSalvageLog Manual? 0 Play Time 01:31:33 Cumulative 11.7 hours Start 2026.08.02 @ 00:54:42 End 2026.08.02 @ 02:49:29 Sessions 1 Manual Loads 0 Difficulty Rogue Special Mode None Game No. 23 Rogue 5 Adventurer 18 Explorer 0 Win Type - Total 0 Types 0/0/0/0/0/0/0/0/0/0 Lore% 3 Gallery% 9 Achievement% 10 Wizard Run 0 Options --------- Layout 0 ASCII 0 Keyboard 0 Movement Mouse Keybinds 0 Fullscreen 1 Font 20/Terminus Map View 33x25 Zoom Use 95% Tactical HUD 1 Map Filters NONE Filters NONE Steam 1 RUN: 54e12b48-623f-4b30-b318-967761e143e4